fUST/lending_fUST_20260205
["ID","MTS","AMOUNT","RATE_DAILY","PERIOD"]
[404543735,1770271832159,-225.0,0.00015065,2]
[404543737,1770271832167,-300.0,0.00015065,2]
[404543738,1770271832177,-300.0,0.00015065,2]
[404543740,1770271832186,-182.15913996,0.00015066,2]
[404543742,1770271832196,-500.0,0.00015066,2]
[404543743,1770271832205,-500.0,0.00015066,2]
[404543745,1770271832214,-380.03392283,0.00015066,2]
[404543747,1770271832223,-500.0,0.00015066,2]
[404543748,1770271832232,-500.0,0.00015066,2]
[404543749,1770271832242,-319.95670289,0.00015066,2]
[404543750,1770271832251,-500.0,0.00015066,2]
[404543751,1770271832260,-500.0,0.00015066,2]
[404543752,1770271832269,-500.0,0.00015066,2]
[404543753,1770271832279,-500.0,0.00015067,2]
[404543754,1770271832288,-500.0,0.00015067,2]
[404543755,1770271832297,-500.0,0.00015067,2]
[404543756,1770271832307,-500.0,0.00015067,2]
[404543757,1770271832316,-500.0,0.00015067,2]
[404543758,1770271832325,-500.0,0.00015067,2]
[404543759,1770271832334,-14188.07503198,0.00015067,2]
[404543760,1770271832793,-327.28,0.00015067,2]
[404543761,1770271835844,-170.45,0.00015067,2]
[404543769,1770271838061,-184.09,0.00015067,2]
[404543772,1770271838224,-16475.57449469,0.00015067,2]
[404543773,1770271838234,-194.5942924,0.00015068,2]
[404543774,1770271838244,-519.79608069,0.00015141,2]
[404543775,1770271838254,-634.14726962,0.00015142,2]
[404543776,1770271838264,-4236.0518093,0.00015195,2]
[404543777,1770271838273,-1169.159877,0.00015373,2]
[404543778,1770271838283,-643.55447786,0.0001634,2]
[404543779,1770271838293,-500.0,0.0001634,2]
[404543780,1770271838303,-500.0,0.0001634,2]
[404543781,1770271838312,-491.3205396,0.0001634,2]
[404543783,1770271838322,-214.48,0.000164,2]
[404543784,1770271838331,-500.0,0.00016439,2]
[404543785,1770271838341,-500.0,0.00016439,2]
[404543786,1770271838350,-235.79702266,0.0001644,2]
[404543787,1770271838359,-500.0,0.0001644,2]
[404543788,1770271838369,-15547.0663286,0.00016441,2]
[404543789,1770271838378,-858.3136788,0.00016441,2]
[404543790,1770271838388,-1536.9764758,0.00016441,2]
[404543791,1770271838398,-243.0,0.00016487,2]
[404543792,1770271838407,-420.0,0.00016487,2]
[404543793,1770271838417,-1142.31305033,0.00016647,2]
[404543794,1770271838427,-179.10156203,0.0001685,2]
[404543795,1770271838436,-181.98271172,0.0001685,2]
[404543796,1770271838446,-215.78676046,0.0001693,2]
[404543797,1770271838458,-19172.15253723,0.00016931,2]
[404543798,1770271838467,-175.48,0.00017,2]
[404543799,1770271838477,-765.758984,0.00017053,2]
[404543800,1770271838487,-214.94778516,0.00017066,2]
[404543801,1770271838497,-179.10156202,0.00017368,2]
[404543802,1770271838507,-181.98271172,0.00017368,2]
[404543803,1770271838516,-17436.8668467,0.00017408,2]
[404543804,1770271838526,-2432.87390252,0.00017671,2]
[404543805,1770271838535,-765.758984,0.00017771,2]
[404543806,1770271838545,-361.08,0.00017808,2]
[404543807,1770271838555,-152.81,0.00017808,2]
[404543808,1770271838564,-152.81,0.00017808,2]
[404543809,1770271838574,-152.8,0.00017808,2]
[404543810,1770271838583,-587.0,0.00018043,2]
[404543811,1770271838593,-500.0,0.0001839,2]
[404543812,1770271838603,-500.0,0.0001839,2]
[404543813,1770271838612,-765.758984,0.00018489,2]
[404543814,1770271838622,-500.0,0.0001849,2]
[404543815,1770271838631,-500.0,0.0001849,2]
[404543816,1770271838640,-500.0,0.0001849,2]
[404543817,1770271838650,-222.0,0.00018491,2]
[404543818,1770271838660,-303.10001603,0.000189,2]
[404543819,1770271838670,-247.73643035,0.00019066,2]
[404543820,1770271838679,-303.10001603,0.00019089,2]
[404543821,1770271838689,-6931.0,0.00019178,2]
[404543822,1770271838698,-765.758984,0.00019207,2]
[404543823,1770271838711,-303.10001603,0.00019278,2]
[404543824,1770271838721,-160.02,0.000193,2]
[404543825,1770271838731,-303.10001603,0.00019467,2]
[404543826,1770271838742,-303.10001603,0.00019656,2]
[404543827,1770271838752,-2432.8739025,0.00019661,2]
[404543828,1770271838762,-2598.44424261,0.00019719,2]
[404543829,1770271838772,-823.0,0.00019745,2]
[404543830,1770271838783,-765.758984,0.00019925,2]
[404543831,1770271838793,-4060.06912907,0.00019969,2]
[404543832,1770271838802,-3469.0193997,0.0001999,2]
[404543833,1770271838812,-765.758984,0.00020643,2]
[404543834,1770271838822,-1369.36655271,0.00020757,2]
[404543835,1770271838831,-2434.42942704,0.00020757,2]
[404543836,1770271838841,-3140.61694837,0.00020757,2]
[404543837,1770271838851,-4907.21398183,0.00020757,2]
[404543838,1770271838861,-774.0428542,0.00020782,2]
[404543839,1770271838871,-280.52507554,0.00021066,2]
[404543840,1770271838880,-304.04946435,0.00021435,2]
[404543841,1770271838891,-215.98006268,0.00021435,2]
[404543842,1770271838901,-5846.49954586,0.00021535,2]
[404543843,1770271838912,-957.0,0.00021609,2]
[404543844,1770271838922,-2432.8739025,0.00021651,2]
[404543845,1770271838932,-529.78,0.00021839,3]
[404543846,1770271838942,-264.89,0.00021839,3]
[404543847,1770271838953,-794.67,0.00021839,3]
[404543848,1770271838966,-201.34,0.00022,7]
[404543849,1770271838976,-1598.97470791,0.00022358,2]
[404543850,1770271838985,-379.86555972,0.00022563,2]
[404543851,1770271838995,-3803.79597975,0.00022668,2]
[404543852,1770271839007,-900.9297639,0.00022704,2]
[404543853,1770271839016,-397.98003275,0.00022712,2]
[404543854,1770271839026,-715.64769489,0.00022712,2]
[404543855,1770271839035,-209.40437684,0.00022717,2]
[404543856,1770271839047,-217.15233878,0.00022717,2]
[404543857,1770271839057,-225.18697532,0.00022717,2]
[404543858,1770271839066,-233.51889341,0.00022717,2]
[404543859,1770271839076,-242.15909246,0.00022717,2]
[404543860,1770271839086,-251.11897888,0.00022717,2]
[404543861,1770271839095,-260.4103811,0.00022717,2]
[404543862,1770271839104,-270.0455652,0.00022717,2]
[404543863,1770271839114,-280.03725112,0.00022717,2]
[404543864,1770271839196,-290.39862941,0.00022717,2]
[404543865,1770271839207,-301.1433787,0.00022717,2]
[404543866,1770271839218,-313.31372074,0.00023066,2]
[404543867,1770271839227,-1059.56,0.00023209,3]
[404543868,1770271839237,-529.78,0.00023209,3]
[404543869,1770271839247,-2000.0,0.00023464,2]
[404543870,1770271839257,-500.0,0.00023464,2]
[404543871,1770271839266,-402.43826018,0.00023535,2]
[404543872,1770271839276,-391.68693459,0.00023535,2]
[404543873,1770271839285,-447.64221097,0.00023535,2]
[404543874,1770271839294,-495.75012147,0.00023535,2]
[404543875,1770271839303,-892.35021865,0.00023535,2]
[404543876,1770271839313,-1586.40038871,0.00023535,2]
[404543877,1770271839322,-2478.75060736,0.00023535,2]
[404543878,1770271839331,-2432.8739025,0.0002364,2]
[404543879,1770271839341,-459.92944021,0.00023646,2]
[404543880,1770271839351,-500.0,0.00023971,2]
[404543881,1770271839360,-733.065532,0.00024095,2]
[404543882,1770271839370,-152.242735,0.0002469,30]
[404543883,1770271839379,-232.212763,0.0002469,30]
[404543884,1770271839388,-260.987545,0.000247,30]
[404543885,1770271839397,-1390.43168542,0.000248,2]
[404543886,1770271839406,-1390.43168542,0.0002489,2]
[404543887,1770271839415,-695.21584271,0.0002497,2]
[404543888,1770271839424,-100000.0,0.0002499,2]
[404543889,1770271839435,-346.10236593,0.00025066,2]
[404543890,1770271839445,-160.02,0.000251,7]
[404543891,1770271839455,-195.740659,0.00025246,30]
[404543892,1770271839464,-184.27697,0.00025246,30]
[404543893,1770271839474,-151.0,0.000253,15]
[404543894,1770271839483,-513.24718458,0.00025345,5]
[404543895,1770271839492,-151.0,0.000255,14]
[404543896,1770271839502,-2432.8739025,0.0002563,2]
[404543897,1770271839511,-695.21584271,0.0002569,2]
[404543898,1770271839520,-856.245757,0.00025697,2]
[404543899,1770271839529,-3476.07921355,0.0002572,2]
[404543900,1770271839539,-6256.94258439,0.0002573,2]
[404543901,1770271839548,-487.0,0.0002573,2]
[404543902,1770271839557,-487.0,0.0002573,2]
[404543903,1770271839567,-487.0,0.0002573,2]
[404543904,1770271839576,-487.0,0.0002573,2]
[404543905,1770271839585,-487.0,0.0002573,2]
[404543906,1770271839594,-487.0,0.0002573,2]
[404543907,1770271839603,-487.0,0.0002573,2]
[404543908,1770271839612,-487.0,0.0002573,2]
[404543909,1770271839621,-487.0,0.0002573,2]
[404543910,1770271839630,-487.0,0.0002573,2]
[404543911,1770271839639,-487.0,0.0002573,2]
[404543912,1770271839648,-487.0,0.0002573,2]
[404543913,1770271839658,-487.0,0.0002573,2]
[404543914,1770271839667,-487.0,0.0002573,2]
[404543915,1770271839676,-487.0,0.0002573,2]
[404543916,1770271839685,-622.96,0.0002573,2]
[404543917,1770271839694,-4359.84418651,0.0002574,2]
[404543918,1770271839705,-1061229.10013098,0.0002574,2]
[404543985,1770271840849,-3e-08,0.00014916,2]
[404544023,1770271841204,-184.09,0.00014916,2]
[404544269,1770271843727,-184.09,0.00014916,2]
[404544380,1770271845395,-1022.47271561,0.00014916,2]
[404544383,1770271846399,-3397.95053867,0.00014916,2]
[404544385,1770271846409,-4388.94147582,0.0002574,2]
[404544394,1770272053635,1344.498578,0.00039499,20]
[404544395,1770272166618,327.8051545,0.00039452,120]
[404544397,1770272402996,150.0,0.00013,2]
[404544398,1770272403330,150.0,0.000132,2]
[404544399,1770272403781,150.0,0.000133,2]
[404544400,1770272404062,150.0,0.000135,2]
[404544401,1770272404350,150.0,0.000137,2]
[404544402,1770272404624,150.0,0.000138,2]
[404544403,1770272404961,150.0,0.00014,2]
[404544406,1770272494753,151.0,0.00039452,120]
[404544407,1770272495597,151.0,0.00039452,120]
[404544408,1770272495912,151.0,0.00039452,120]
[404544409,1770272496263,151.0,0.00039452,120]
[404544410,1770272496897,151.0,0.00039452,120]
[404544411,1770272497200,151.0,0.00039452,120]
[404544412,1770272497498,151.0,0.00039452,120]
[404544413,1770272497808,151.0,0.00039452,120]
[404544414,1770272498122,151.0,0.00039452,120]
[404544415,1770272498413,151.0,0.00039452,120]
[404544416,1770272498705,151.0,0.00039452,120]
[404544417,1770272499008,151.0,0.00039452,120]
[404544418,1770272499321,151.0,0.00039452,120]
[404544419,1770272499636,151.0,0.00039452,120]
[404544420,1770272499919,151.0,0.00039452,120]
[404544421,1770272500221,151.0,0.00039452,120]
[404544422,1770272500488,151.0,0.00039452,120]
[404544423,1770272500786,151.0,0.00039452,120]
[404544424,1770272501074,271.044411,0.00039452,120]
[404544425,1770272539784,200.0,0.000301,120]
[404544483,1770272841791,1432093.04346238,0.00039452,30]
[404544484,1770272856787,564270.82221904,0.00039452,120]
[404544520,1770273032465,-150.0,0.000142,2]
[404544521,1770273032474,-150.46344961,0.00014225,2]
[404544522,1770273032484,-150.0,0.000143,2]
[404544523,1770273032494,-213.5888103,0.00016163,2]
[404544524,1770273032503,-177.54687054,0.00016225,2]
[404544525,1770273032513,-167.13,0.000163,2]
[404544526,1770273032523,-3771.0194105,0.000163,2]
[404544527,1770273032534,-1840.84436724,0.00018,2]
[404544996,1770273046600,-3915.68253048,0.00018,2]
[404544997,1770273046664,-9280.43491543,0.00018,2]
[404544998,1770273046676,-565.8992,0.00018,2]
[404544999,1770273046737,-22524.07088086,0.00018,2]
[404545000,1770273046747,-5498.48327735,0.00018125,2]
[404545001,1770273046756,-204.63029147,0.00018225,2]
[404545003,1770273046766,-500.0,0.00019,2]
[404545005,1770273046777,-601.58635831,0.00019,30]
[404545008,1770273046786,-231.7137124,0.00020225,2]
[404545010,1770273046796,-987.06790291,0.000209,2]
[404545011,1770273046806,-366.532766,0.00020975,2]
[404545012,1770273046817,-363.85725649,0.00020999,2]
[404545013,1770273046826,-1000.0,0.00021,2]
[404545014,1770273046835,-1500.0,0.00022,2]
[404545015,1770273046845,-524.39721962,0.00022059,2]
[404545016,1770273046855,-660.1643052,0.00022059,2]
[404545017,1770273046864,-159.62665952,0.0002215,5]
[404545018,1770273046873,-127.86936989,0.00022225,2]
[404545019,1770273046886,-130.92776344,0.00022225,2]
[404545020,1770273046895,-1649.81326363,0.00022464,2]
[404545021,1770273046906,-790.17,0.00022464,2]
[404545022,1770273062469,-501.37,0.00016574,2]
[404545023,1770273079729,-150.10285153,0.00017808,2]
[404545024,1770273096385,-500.0,0.00017999,2]
[404545025,1770273096413,-500.0,0.00017999,2]
[404545026,1770273096436,-500.0,0.00017999,2]
[404545027,1770273096447,-500.0,0.00017999,2]
[404545028,1770273096462,-288.52903869,0.00017999,2]
[404545029,1770273125586,-150.10285153,0.00017998,2]
[404545030,1770273395475,4883.0,0.00030137,120]
[404545038,1770273787819,160.0,0.000301,120]
[404545042,1770273803370,200.0,0.0003,120]
[404545047,1770274155137,-5000.0,0.00017116,10]
[404545048,1770274155160,-150.0,0.00017487,2]
[404545049,1770274155182,-1942.82852142,0.00017487,2]
[404545050,1770274167368,151.0,0.00039475,120]
[404545051,1770274167775,151.0,0.00039475,120]
[404545052,1770274168070,151.0,0.00039475,120]
[404545053,1770274168541,151.0,0.00039475,120]
[404545054,1770274168712,151.0,0.00039475,120]
[404545055,1770274169017,151.0,0.00039475,120]
[404545056,1770274169317,151.0,0.00039475,120]
[404545057,1770274169605,151.0,0.00039475,120]
[404545058,1770274169899,266.819074,0.00039475,120]
[404545098,1770274232515,-2025.51855873,0.00017487,2]
[404545100,1770274232525,-792.16709817,0.00017584,2]
[404545102,1770274232535,-300.0,0.00017684,2]
[404545104,1770274232545,-160.0,0.0001799,2]
[404545106,1770274232554,-208.0,0.00017998,2]
[404545108,1770274232564,-300.0,0.00017998,2]
[404545110,1770274232574,-300.0,0.00017998,2]
[404545112,1770274232583,-500.0,0.00017999,2]
[404545114,1770274232592,-389.93748134,0.00017999,2]
[404545116,1770274232602,-1200.0,0.00018388,2]
[404545118,1770274232612,-3064.9905255,0.00018389,2]
[404545121,1770274232622,-303.10001603,0.000189,2]
[404545124,1770274232636,-500.0,0.00018911,2]
[404545126,1770274232645,-500.0,0.00018911,2]
[404545127,1770274232655,-500.0,0.00018911,2]
[404545128,1770274232664,-500.0,0.00018911,2]
[404545129,1770274232675,-500.0,0.00018911,2]
[404545130,1770274232684,-500.0,0.00018911,2]
[404545131,1770274232694,-500.0,0.00018911,2]
[404545132,1770274232703,-500.0,0.00018911,2]
[404545133,1770274232712,-500.0,0.00018911,2]
[404545134,1770274232722,-283.96179112,0.00018911,2]
[404545135,1770274232731,-500.0,0.00018911,2]
[404545136,1770274232741,-287.81904833,0.00018911,2]
[404545137,1770274232752,-500.0,0.00018911,2]
[404545138,1770274232762,-500.0,0.00018911,2]
[404545139,1770274232771,-500.0,0.00018911,2]
[404545140,1770274232781,-500.0,0.00018911,2]
[404545141,1770274232790,-500.0,0.00018911,2]
[404545142,1770274232799,-198.54314838,0.00018911,2]
[404545143,1770274232809,-500.0,0.00018911,2]
[404545144,1770274232818,-322.3258369,0.00018911,2]
[404545145,1770274232828,-500.0,0.00018911,2]
[404545146,1770274232837,-484.84861749,0.00018911,2]
[404545147,1770274232847,-500.0,0.00018911,2]
[404545148,1770274232856,-536.92898716,0.00018911,2]
[404545149,1770274232866,-500.0,0.00018911,2]
[404545150,1770274232876,-500.0,0.00018911,2]
[404545151,1770274232886,-5075.32935966,0.00018913,2]
[404545152,1770274232896,-1018.10629821,0.00018913,2]
[404545153,1770274232906,-496.76139932,0.00018913,2]
[404545154,1770274232915,-1987.04559729,0.00018913,2]
[404545155,1770274232925,-997.85081825,0.00018913,2]
[404545156,1770274232935,-4466.3817413,0.00018913,2]
[404545157,1770274232944,-303.10001603,0.00019089,2]
[404545158,1770274232954,-394.58344302,0.00019112,2]
[404545159,1770274232964,-303.10001603,0.00019278,2]
[404545160,1770274232973,-303.10001603,0.00019467,2]
[404545161,1770274232982,-177.0,0.00019487,2]
[404545162,1770274232991,-5508.89615639,0.00019536,2]
[404545163,1770274233001,-420.0,0.00019638,2]
[404545164,1770274233011,-303.10001603,0.00019656,2]
[404545165,1770274233020,-1000.0,0.00019667,2]
[404545166,1770274233029,-658.0452686,0.00019745,2]
[404545167,1770274233040,-1649.7420478,0.00019823,2]
[404545168,1770274233050,-454.65002467,0.00019845,4]
[404545169,1770274233060,-162.0,0.000199,3]
[404545170,1770274233069,-378.57285547,0.00019907,2]
[404545171,1770274233079,-787.60952051,0.00019908,2]
[404545172,1770274233088,-1169.32079816,0.00019908,2]
[404545173,1770274233098,-636.30821057,0.00019908,2]
[404545174,1770274233108,-1143.37822769,0.00019908,2]
[404545175,1770274233117,-3147.28764397,0.00019908,2]
[404545176,1770274233127,-1680.0,0.00020154,2]
[404545177,1770274233136,-189.161668,0.0002051,2]
[404545178,1770274233146,-500.0,0.00020955,2]
[404545179,1770274233155,-587.0,0.00021427,2]
[404545180,1770274233164,-204.0,0.00021487,2]
[404545181,1770274233174,-500.0,0.00022057,2]
[404545182,1770274233184,-406.0,0.00022089,2]
[404545183,1770274233193,-2050.9357496,0.00022441,2]
[404545184,1770274233290,-500.0,0.00022463,2]
[404545185,1770274233300,-4020.48117027,0.00022464,2]
[404545186,1770274233309,-511.0,0.00023379,2]
[404545187,1770274233319,-231.0,0.00023487,2]
[404545188,1770274233329,-250.0,0.00023521,2]
[404545189,1770274233339,-250.0,0.00023521,2]
[404545190,1770274233349,-250.0,0.00023521,2]
[404545191,1770274233358,-250.0,0.00023521,2]
[404545192,1770274233367,-209.40437684,0.00023521,2]
[404545193,1770274233377,-250.0,0.00023521,2]
[404545194,1770274233387,-250.0,0.00023521,2]
[404545195,1770274233396,-217.15233878,0.00023521,2]
[404545196,1770274233406,-250.0,0.00023521,2]
[404545197,1770274233416,-225.18697532,0.00023521,2]
[404545198,1770274233425,-250.0,0.00023521,2]
[404545199,1770274233435,-233.51889341,0.00023521,2]
[404545200,1770274233444,-250.0,0.00023521,2]
[404545201,1770274233454,-242.15909246,0.00023521,2]
[404545202,1770274233463,-250.0,0.00023521,2]
[404545203,1770274233473,-251.11897888,0.00023521,2]
[404545204,1770274233484,-250.0,0.00023521,2]
[404545205,1770274233493,-260.4103811,0.00023521,2]
[404545206,1770274233502,-270.0455652,0.00023521,2]
[404545207,1770274233512,-280.03725112,0.00023521,2]
[404545208,1770274233522,-290.39862941,0.00023521,2]
[404545209,1770274233531,-301.1433787,0.00023521,2]
[404545210,1770274233542,-405.41427421,0.00023622,2]
[404545211,1770274233551,-1000.0,0.00024,6]
[404545212,1770274233561,-676.8571349,0.0002425,2]
[404545213,1770274233570,-231.415,0.0002489,8]
[404545214,1770274233579,-500.0,0.0002497,2]
[404545215,1770274233589,-500.0,0.00025238,2]
[404545216,1770274233599,-4728.84,0.00025259,10]
[404545217,1770274233609,-6499.11,0.00025259,10]
[404545218,1770274233619,-5415.92,0.00025259,10]
[404545219,1770274233634,-18189.8516234,0.00025269,2]
[404545220,1770274233643,-584.22952258,0.00025288,2]
[404545221,1770274233653,-18189.8516234,0.00025289,2]
[404545222,1770274233663,-868.5035931,0.00025299,2]
[404545223,1770274233674,-40219.0999503,0.00025299,2]
[404545224,1770274233684,-2741.7282252,0.00025299,2]
[404545225,1770274233693,-258.0,0.00025487,2]
[404545226,1770274233704,-2000.0,0.00025499,2]
[404545227,1770274233715,-12928.0,0.000255,2]
[404545228,1770274233724,-54569.5548701,0.0002573,2]
[404545229,1770274233734,-11500.40289087,0.0002574,2]
[404545230,1770274233746,-9850.0025269,0.0002574,2]
[404545231,1770274233758,-2878.53045387,0.0002574,2]
[404545232,1770274233770,-9667.09563323,0.0002574,2]
[404545321,1770274241459,-500.0,0.00018911,2]
[404545323,1770274241468,-500.0,0.00018911,2]
[404545325,1770274241478,-500.0,0.00018911,2]
[404545327,1770274241487,-500.0,0.00018911,2]
[404545329,1770274241496,-500.0,0.00018911,2]
[404545331,1770274241505,-500.0,0.00018911,2]
[404545333,1770274241515,-560.0,0.00018911,2]
[404545335,1770274241524,-206.16940033,0.00018911,2]
[404545337,1770274241533,-658.04526859,0.00022693,2]
[404545339,1770274241543,-500.0,0.00023521,2]
[404545341,1770274241552,-250.0,0.00023521,2]
[404545343,1770274241562,-500.0,0.00023521,2]
[404545345,1770274241570,-250.0,0.00023521,2]
[404545347,1770274241579,-500.0,0.00023521,2]
[404545349,1770274241588,-250.0,0.00023521,2]
[404545351,1770274241597,-500.0,0.00023521,2]
[404545353,1770274241606,-250.0,0.00023521,2]
[404545354,1770274241615,-500.0,0.00023521,2]
[404545357,1770274241625,-250.0,0.00023521,2]
[404545358,1770274241638,-500.0,0.00023521,2]
[404545360,1770274241647,-250.0,0.00023521,2]
[404545362,1770274241656,-500.0,0.00023521,2]
[404545364,1770274241665,-250.0,0.00023521,2]
[404545366,1770274241675,-500.0,0.00023521,2]
[404545368,1770274241684,-250.0,0.00023521,2]
[404545370,1770274241694,-511.62044375,0.00023521,2]
[404545372,1770274241705,-250.0,0.00023521,2]
[404545374,1770274241714,-1000.0,0.00025,6]
[404545376,1770274241723,-3469.52791488,0.0002574,2]
[404545688,1770274247063,-250.0,0.00023521,2]
[404545689,1770274247072,-250.0,0.00023521,2]
[404545690,1770274247082,-658.04526859,0.0002564,2]
[404545691,1770274247091,-1080.21433141,0.0002573,10]
[404545695,1770274247956,-3494.60566859,0.0002573,10]
[404545696,1770274247966,-4047.74981538,0.0002574,2]
[404545712,1770274530070,186.0,0.00025722,120]
[404545713,1770274531338,186.0,0.00027008,120]
[404545714,1770274532749,186.0,0.00028358,120]
[404545715,1770274534031,186.0,0.00029776,120]
[404545736,1770275082218,151.0,0.00039467,120]
[404545738,1770275145308,4123.75367006,0.00039467,120]
[404545771,1770275431749,-151.63838989,0.00019173,2]
[404545772,1770275431759,-4562.33491058,0.0001928,2]
[404545773,1770275431768,-178.93330008,0.00021173,2]
[404545774,1770275431777,-300.0,0.00022274,2]
[404545775,1770275431787,-192.0,0.00022274,2]
[404545776,1770275431796,-301.51571882,0.00022275,2]
[404545777,1770275431805,-344.24480354,0.00022275,2]
[404545778,1770275431814,-288.29082657,0.00022275,2]
[404545779,1770275431823,-518.40456434,0.00022275,2]
[404545780,1770275431833,-287.47450072,0.00022275,2]
[404545781,1770275431842,-163.91344043,0.00022275,2]
[404545782,1770275431851,-294.74914857,0.00022275,2]
[404545783,1770275431860,-6604.7924181,0.00022275,2]
[404545784,1770275431870,-242.01822766,0.00022509,2]
[404545785,1770275431879,-206.22821026,0.00023173,2]
[404545786,1770275431888,-209.40437684,0.00024975,2]
[404545787,1770275431898,-250.0,0.00024975,2]
[404545788,1770275431907,-217.15233878,0.00024975,2]
[404545789,1770275431916,-250.0,0.00024975,2]
[404545790,1770275431926,-225.18697532,0.00024975,2]
[404545791,1770275431939,-250.0,0.00024975,2]
[404545792,1770275431948,-233.51889341,0.00024975,2]
[404545793,1770275431957,-250.0,0.00024975,2]
[404545794,1770275431968,-242.15909246,0.00024975,2]
[404545795,1770275431979,-250.0,0.00024975,2]
[404545796,1770275431988,-251.11897888,0.00024975,2]
[404545797,1770275431997,-250.0,0.00024975,2]
[404545798,1770275432009,-260.4103811,0.00024975,2]
[404545799,1770275432019,-500.0,0.00024975,2]
[404545800,1770275432028,-250.0,0.00024975,2]
[404545801,1770275432037,-270.0455652,0.00024975,2]
[404545802,1770275432046,-500.0,0.00024975,2]
[404545803,1770275432056,-250.0,0.00024975,2]
[404545804,1770275432065,-280.03725112,0.00024975,2]
[404545805,1770275432074,-500.0,0.00024975,2]
[404545806,1770275432083,-265.18555479,0.00024975,2]
[404545807,1770275432170,-290.39862941,0.00024975,2]
[404545808,1770275432180,-500.0,0.00024975,2]
[404545809,1770275432190,-301.1433787,0.00024975,2]
[404545810,1770275432199,-500.0,0.00024975,2]
[404545811,1770275432209,-250.0,0.00024975,2]
[404545812,1770275432221,-500.0,0.00024975,2]
[404545813,1770275432230,-250.0,0.00024975,2]
[404545814,1770275432239,-500.0,0.00024975,2]
[404545815,1770275432248,-250.0,0.00024975,2]
[404545816,1770275432257,-500.0,0.00024975,2]
[404545817,1770275432266,-250.0,0.00024975,2]
[404545818,1770275432276,-500.0,0.00024975,2]
[404545819,1770275432285,-250.0,0.00024975,2]
[404545820,1770275432295,-500.0,0.00024975,2]
[404545821,1770275432304,-250.0,0.00024975,2]
[404545822,1770275432314,-500.0,0.00024975,2]
[404545823,1770275432323,-250.0,0.00024975,2]
[404545824,1770275432332,-250.0,0.00024975,2]
[404545825,1770275432341,-250.0,0.00024975,2]
[404545826,1770275432351,-250.0,0.00024975,2]
[404545827,1770275432360,-250.0,0.00024975,2]
[404545828,1770275432369,-500.0,0.00024979,2]
[404545829,1770275432378,-500.0,0.00024979,2]
[404545830,1770275432388,-597.77767073,0.00024979,2]
[404545831,1770275432397,-500.0,0.00024979,2]
[404545832,1770275432406,-471.86607469,0.00024979,2]
[404545833,1770275432415,-500.0,0.00024979,2]
[404545834,1770275432424,-295.70066724,0.00024979,2]
[404545835,1770275432433,-500.0,0.00024979,2]
[404545836,1770275432443,-224.06073378,0.00024979,2]
[404545837,1770275432452,-500.0,0.00024979,2]
[404545838,1770275432470,-500.0,0.00024979,2]
[404545839,1770275432484,-500.0,0.00024979,2]
[404545840,1770275432494,-3812.35,0.0002498,10]
[404545841,1770275432504,-13668.6908877,0.0002498,2]
[404545842,1770275432514,-100000.0,0.0002499,2]
[404545843,1770275432524,-233.52312044,0.00025173,2]
[404545844,1770275432534,-500.0,0.00025266,2]
[404545845,1770275432543,-601.96011286,0.00025289,2]
[404545846,1770275432553,-457.21236418,0.00025289,2]
[404545847,1770275432563,-2000.0,0.00025298,2]
[404545848,1770275432573,-185.132,0.00025298,9]
[404545849,1770275432582,-1031.0850041,0.00025332,2]
[404545850,1770275432593,-9046.4565803,0.00025332,2]
[404545851,1770275432603,-8623.0942955,0.00025332,2]